Cogmind - Beta 17.1 @@@ ROGUE MODE // 2026.09.08 @ 00:56:19 Player: Cereal Killer Result: Destroyed by H-66 Slayer with Gauss Rifle Performance ------------- Evolutions (5) 2500 Regions Visited (10) 2000 Robots Destroyed (196) 980 Value Destroyed (7838) 7838 Prototype IDs (46) 920 Alien Tech Used (0) 0 Bonus (19029) 19029 TOTAL SCORE: 33267 Bonus ------- Triggered High Security 500 High Alert Combat Kills 1852 Follower Combat Kills 1464 Prayed to X0-1V1 5000 Major X0-1V1 Interference 7200 Delivered SUBCON Basin 2000 Registered with UFD 300 Met Optimus in HQ 500 Met Imprinter 300 Friendly Fire -87 Cogmind --------- Core Integrity 0/950 Matter 298/700 Energy 900/900 System Corruption 0% Temperature Cool (0) Movement Flying (40) Location -5/Factory Parts ------- > --- POWER (2) -------- (None) > --- PROPULSION (1) --- Biomechanical Wings > --- UTILITY (10) ----- Machine Analyzer Enhanced Optical Array Advanced Signal Interpreter Advanced Melee Analysis Suite Core Analyzer Advanced System Shield A0-MCA's Component Scanner Improved Corruption Screen > --- WEAPON (4) ------- (None) > --- INVENTORY (5) ---- Wheel Improved Cryofiber Web Improved Transmission Jammer Advanced Plasma Cannon Improved Plasma Cutter Peak State ------------ > --- POWER ------------ Neutrino Core Light Neutrino Core > --- PROPULSION ------- Wheel > --- UTILITY ---------- Advanced Heat Sink Medium Storage Unit Deep Structural Scanner Advanced Signal Interpreter Advanced Targeting Computer Advanced System Shield Advanced System Shield A0-MCA's Component Scanner Tech Extrapolator X0-1V1's Piety Tracker > --- WEAPON ----------- Cooled Plasma Rifle Cooled Plasma Rifle Cooled Plasma Rifle Phasing Sabre > --- INVENTORY -------- Wheel Improved Cryofiber Web Cooled Plasma Rifle Advanced Plasma Cannon Bore Cannon Antimatter Cannon Scatter Rocket Array Improved Plasma Cutter Thunder Hammer Kinetic Spear [Rating: 104] Favorites ----------- Power Neutrino Core Engine Cooled Ion Engine Power Core Neutrino Core Reactor Cold Fusion Reactor Propulsion Compact Wheel Treads Improved Treads Leg Carbon-fiber Leg Wheel Compact Wheel Flight Unit Biomechanical Wings Utility X0-1V1's Piety Tracker Device X0-1V1's Piety Tracker Storage Medium Storage Unit Processor Tech Extrapolator Hackware Advanced System Shield Protection Makeshift Propulsion Shielding Weapon Overtuned Coil Gun Energy Gun Improved Spread Laser Energy Cannon Subdweller Beam Cannon Ballistic Gun Overtuned Coil Gun Ballistic Cannon Bore Cannon Launcher EMP Blaster Special Weapon Improved Remote Datajack Impact Weapon Powered Hammer Slashing Weapon Phasing Sabre Piercing Weapon Kinetic Spear Build | -11 -10 -10 -9 -9 -6 -6 -6 -6 -5 -5 ------- Run | Yrd Mat Sub Rec Scr Fac Low Low Zio Pro Fac Slots Evolved 10 | . . . . . 8 . . . . 2 Power . | . . . . . . . . . . . Propulsion . | . . . . . . . . . . . Utility 8 | . . . . . 6 . . . . 2 Weapon 2 | . . . . . 2 . . . . . Parts Attached 156 | 7 7 17 . 2 59 3 5 5 1 50 Power 19 | 1 . 4 . . 6 2 . . . 6 Engine 11 | 1 . 4 . . 3 . . . . 3 Core 5 | . . . . . . 2 . . . 3 Reactor 3 | . . . . . 3 . . . . . Propulsion 23 | 3 . 4 . . 8 . 1 . 1 6 Treads 3 | 1 . . . . . . 1 . 1 . Leg 1 | . . . . . 1 . . . . . Wheel 16 | 2 . 4 . . 6 . . . . 4 Hover . | . . . . . . . . . . . Flight 3 | . . . . . 1 . . . . 2 Utility 60 | 1 3 1 . 1 22 . 4 3 . 25 Device 34 | . 1 1 . . 14 . 3 2 . 13 Storage 5 | 1 2 . . 1 1 . . . . . Processor 11 | . . . . . 3 . . . . 8 Hackware 3 | . . . . . . . . . . 3 Protection 7 | . . . . . 4 . 1 1 . 1 Artifact . | . . . . . . . . . . . Weapon 54 | 2 4 8 . 1 23 1 . 2 . 13 Energy Gun 14 | 2 . . . . 7 . . 1 . 4 Energy Cannon 11 | . . 4 . . 3 . . . . 4 Ballistic Gun 13 | . 2 3 . . 7 1 . . . . Ballistic Cannon 3 | . . 1 . . . . . . . 2 Launcher 5 | . 1 . . 1 2 . . . . 1 Special Weapon 4 | . 1 . . . 2 . . . . 1 Impact Weapon 1 | . . . . . 1 . . . . . Slashing Weapon 2 | . . . . . 1 . . 1 . . Piercing Weapon 1 | . . . . . . . . . . 1 Special Melee Weapon . | . . . . . . . . . . . Unidentified Prototypes 13 | . . 1 . . 8 . . 3 . 1 Corrupted Parts 1 | . . . . . 1 . . . . . System Corruption 2 | . . . . . 2 . . . . . Parts Lost 81 | . . 10 . . 30 1 5 . 4 31 Power 14 | . . 4 . . 3 1 . . 2 4 Propulsion 12 | . . 2 . . 5 . 1 . 1 3 Utility 27 | . . . . . 10 . 3 . 1 13 Weapon 28 | . . 4 . . 12 . 1 . . 11 Highest Loss Streak 15 | . . 4 . . 15 1 3 . 3 13 To Critical Strikes 2 | . . . . . 1 . 1 . . . Average Backups 8 | 2 8 10 . 8 10 7 6 7 8 8 Power . | . 1 . . . 1 . . . . . Propulsion 1 | 1 3 3 . . 1 . . . . . Utility 2 | . . 3 . 3 2 4 3 3 3 2 Weapon 2 | . 3 3 . 2 1 2 1 3 4 3 Tool/Special . | . . . . . . . . . . . Unused Backups 39 | . 1 7 . 3 8 6 . 1 . 13 Power 3 | . . . . . 2 . . . . 1 Propulsion 7 | . . 3 . . 2 . . . . 2 Utility 16 | . . 3 . 3 3 1 . 1 . 5 Weapon 11 | . 1 1 . . 1 4 . . . 4 Tool/Special 2 | . . . . . . 1 . . . 1 Average Slot Usage (%) 83 | . 97 92 100 93 89 92 90 72 57 78 Engine 8 | . 14 22 28 28 5 1 . . . 3 Core 5 | . . . . . . 9 13 13 6 4 Treads 2 | . . . . . . . 3 6 5 . Wheel 5 | . 28 13 14 14 5 6 . . . 2 Device 20 | . 11 13 14 14 25 26 26 21 23 19 Storage 7 | . 14 14 14 14 5 6 6 6 6 4 Processor 8 | . . . . . 9 13 8 6 6 19 Protection 1 | . . . . . 4 . 3 1 . 1 Energy Gun 7 | . 6 . 7 14 9 6 7 8 6 6 Energy Cannon 4 | . . 14 20 1 7 . . . . 1 Ballistic Gun 4 | . 12 7 . . 3 13 11 2 . . Launcher 1 | . 7 . . 6 . . . . . . Impact Weapon 1 | . . . . . 1 6 6 1 . . Peak Build Rating 104 | 6 8 44 44 32 78 80 80 99 99 104 Average Rating 67 | 4 7 27 43 28 68 78 77 90 89 87 On Entrance 48 | . 6 8 44 26 32 74 80 78 99 82 Avg Prop Armor Cover (%) . | . . . . . . . . . . . Naked Turns . | . . . . . . . . . . . Heaviest Build 78 | 11 28 49 49 44 75 62 63 73 71 78 Greatest Support 28 | 26 26 26 16 16 16 10 23 23 28 28 Greatest Overweight (x) 20 | . 1 8 3 2 18 6 20 3 13 7 Average Overweight (x) 2 | . . 1 2 2 5 5 4 2 1 1 Largest Inventory Capacity 15 | 8 15 15 15 15 15 10 10 10 10 10 Average Capacity 11 | 7 9 15 15 15 13 10 10 10 10 9 Most Carried 15 | 6 11 15 15 15 15 10 10 10 10 10 Average Carried 10 | 3 8 14 14 9 12 9 9 9 9 8 Final Capacity 15 | 8 15 15 15 15 10 10 10 10 10 5 Final Carried 15 | 6 11 15 1 15 10 10 8 9 10 5 Scrap Suit Usage (%) 38 | . . . . . 5 25 99 90 . 56 Parts Cannibalized 4 | . . . . . 1 . . 1 . 2 Class Distribution -------------------- 24% | Scavenger-Gunner 19% | Mutant 15% | Scavenger-Skirmisher 12% | Scavenger-Tank 9% | Commander-Mutant 7% | Gunner 3% | Skirmisher Dominant Class ---------------- Mutant | -10/Materials Mutant | -10/Subcaves Mutant | -9/Recycling Commander-Mutant | -9/Scraptown Gunner | -6/Factory Scavenger-Skirmisher | -6/Lower Caves Scavenger-Tank | -6/Lower Caves Scavenger-Gunner | -6/Zion Scavenger-Skirmisher | -5/Proximity Caves Scavenger-Gunner | -5/Factory Resources | -11 -10 -10 -9 -9 -6 -6 -6 -6 -5 -5 ----------- Run | Yrd Mat Sub Rec Scr Fac Low Low Zio Pro Fac Matter Collected 6895 | 280 104 649 . 20 1343 361 845 120 591 2582 Remotely . | . . . . . . . . . . . Salvage Created 8647 | 50 341 593 . . 2565 123 806 . 430 3739 Parts 369 | 3 25 50 . . 116 10 25 . 18 122 Haulers Intercepted 8 | . 2 . . . 3 . . . . 3 Recyclers Shooed 10 | . . . . . 4 . . . . 6 Parts Field Recycled 29 | . . . . . 29 . . . . . Retrieved Matter 282 | . . . . . 282 . . . . . Parts Self-Destructed 90 | . . 33 . . . 17 24 . 16 . Prevented 1 | . . . . . . 1 . . . . Parts Restored . | . . . . . . . . . . . Kills | -11 -10 -10 -9 -9 -6 -6 -6 -6 -5 -5 ------- Run | Yrd Mat Sub Rec Scr Fac Low Low Zio Pro Fac Combat Hostiles Destroyed 145 | . 9 23 . . 32 2 11 . 8 60 Guns 50 | . 1 3 . . 11 2 9 . 8 16 Cannons 41 | . . 17 . . 14 . . . . 10 AOE 46 | . 8 3 . . 4 . 2 . . 29 Classes Destroyed 22 | 1 5 1 . . 9 . . . 1 5 Worker 16 | . . . . . 7 . . . . 9 Builder 7 | . . . . . 3 . . . . 4 Tunneler 2 | 2 . . . . . . . . . . Hauler 8 | . 2 . . . 3 . . . . 3 Recycler 8 | . . . . . 3 . . . . 5 Carrier 1 | . . . . . . . . . . 1 Mechanic 1 | . . . . . 1 . . . . . Operator 2 | . 1 . . . 1 . . . . . Drone 2 | . . . . . . . . . . 2 Watcher 8 | . 2 . . . 3 . . . . 3 Swarmer 27 | . 3 9 . . 3 . . . 3 9 Saboteur 1 | . . . . . . . . . . 1 Grunt 56 | . 6 2 . . 20 . 7 . 3 18 Brawler 3 | . . . . . 1 . 2 . . . Duelist 4 | . . . . . 1 . 2 . . 1 Sentry 8 | . . . . . 2 . . . . 6 Specialist 2 | . . . . . . . . . . 2 Hunter 15 | . . . . . 2 2 . . 1 10 Programmer 14 | . . . . . 3 . . . 1 10 Heavy 1 | . . . . . . . . . . 1 Subdweller 12 | . . 12 . . . . . . . . Decomposer 1 | . . . . . . . 1 . . . Packrat 3 | . . . . . . . 3 . . . Samaritan 1 | . . . . . . . . . 1 . Best Kill Streak 21 | 2 5 6 . . 8 2 4 . 2 21 Combat Bots Only 10 | . 4 6 . . 4 2 4 . 2 10 Max Kills in Single Turn 5 | 1 4 2 . . 2 1 1 . 2 5 Gunslinging . | . . . . . . . . . . . Exploded 4 | . 3 1 . . 1 . 1 . . 4 Melee . | . . . . . . . . . . . Uniques/NPCs Destroyed . | . . . . . . . . . . . Combat | -11 -10 -10 -9 -9 -6 -6 -6 -6 -5 -5 -------- Run | Yrd Mat Sub Rec Scr Fac Low Low Zio Pro Fac Hostile Shots Fired 990 | . 17 128 2 . 349 15 54 . 86 339 Missed 303 | . 6 32 . . 107 3 13 . 23 119 Hits 687 | . 11 96 2 . 242 12 41 . 63 220 Melee 24 | . . . . . 16 . 5 . . 3 Projectile 663 | . 11 96 2 . 226 12 36 . 63 217 AOE 5 | . . 2 . . . . . . . 3 Critical Strikes 26 | . 1 1 . . 8 1 1 . 1 13 Part Disruptions 1 | . . . . . 1 . . . . . Damage Taken 12096 | . 158 1401 21 . 3942 227 870 . 1078 4399 Core 2629 | . 36 400 11 . 892 35 50 . 99 1106 Absorbed by Shields 537 | . . . . . 64 . . . . 473 Redirected to Shielding 67 | . . . . . 59 . 8 . . . Ignored by Resistances 44 | . . . . . . . . . . 44 Regen/Repaired (Parts) 27 | . . . . . 1 . . 10 . 16 Core Remaining (%) 60 | 100 . . . 30 . . . . 51 . Volleys Fired 418 | 7 33 74 1 . 124 6 37 . 16 120 Largest 4 | 2 2 2 2 . 4 3 3 . 1 3 Hottest 295 | 90 100 160 145 . 295 130 182 . 250 250 Shots Fired 873 | 14 46 112 2 . 348 18 86 . 17 230 Gun 501 | 14 35 22 1 . 185 18 84 . 17 125 Cannon 312 | . . 82 1 . 151 . . . . 78 Launcher 53 | . 9 8 . . 9 . 2 . . 25 Special 7 | . 2 . . . 3 . . . . 2 Kinetic 206 | . 31 34 . . 41 12 62 . . 26 Thermal 607 | 14 6 70 2 . 293 6 22 . 17 177 Explosive 49 | . 9 8 . . 5 . 2 . . 25 Electromagnetic 6 | . . . . . 6 . . . . . Robot Hit Streak 20 | 6 7 11 8 . 15 5 8 . 9 20 Robot Miss Streak 16 | 3 4 3 . . 8 7 8 . 16 9 Penetration Max 1 | . . . . . . . 1 . . 1 Secondary Targets 5 | . . . . . . 1 3 . . 1 Max Gunslinging Chain 1 | . . . . . . 1 1 . . 1 Shots Hit Robots 524 | 8 25 48 2 . 209 13 53 . 15 151 Core Hits 568 | 3 29 24 2 . 177 12 56 . 25 240 Critical Kills 8 | . . . . . 1 . 2 . . 5 Critical Parts Destroyed 5 | . . . . . . . 1 . . 4 Critical Strikes 33 | 1 . 1 . . 5 . 3 . . 23 Burn 18 | 1 . . . . 4 . . . . 13 Meltdown 1 | . . . . . 1 . . . . . Destroy 12 | . . . . . . . 3 . . 9 Blast 1 | . . 1 . . . . . . . . Sever 1 | . . . . . . . . . . 1 Melee Attacks 16 | . . . . . 2 . . 1 . 13 Impact 1 | . . . . . . . . 1 . . Slashing 15 | . . . . . 2 . . . . 13 Piercing . | . . . . . . . . . . . Sneak Attacks 5 | . . . . . . . . . . 5 Combat Hostiles . | . . . . . . . . . . . Follow-up Attacks . | . . . . . . . . . . . Damage Inflicted 24800 | 93 824 1888 54 . 6709 204 1730 . 1097 12201 Guns 10041 | 93 271 203 23 . 2729 204 1549 . 1097 3872 Cannons 5246 | . . 977 31 . 2649 . . . . 1589 Explosions 9077 | . 553 708 . . 1331 . 181 . . 6304 Melee 427 | . . . . . . . . . . 427 Ramming 9 | . . . . . . . . . . 9 Kinetic 2978 | . 249 364 . . 490 114 1155 . . 606 Thermal 13865 | 93 22 816 54 . 4870 90 394 . 1097 6429 Explosive 6452 | . 553 377 . . 890 . 181 . . 4451 Electromagnetic 738 | . . . . . 459 . . . . 279 Impact . | . . . . . . . . . . . Slashing 427 | . . . . . . . . . . 427 Piercing . | . . . . . . . . . . . Entropic 331 | . . 331 . . . . . . . . Highest Corruption 12 | . . 12 . . 5 . 10 10 3 8 Average Corruption 4 | . . 4 . . 3 . 9 10 2 2 Corruption Purged . | . . . . . . . . . . . Corruption Blocked . | . . . . . . . . . . . Effects 145 | . . 21 . . 19 . 49 4 8 44 Message Errors 33 | . . 6 . . 7 . 8 . . 12 Matter Fused 30 | . . 3 . . 1 . 13 2 2 9 Heat Flow Errors 11 | . . 2 . . 1 . 5 . 1 2 Energy Discharges 25 | . . 4 . . 6 . 7 1 . 7 Parts Rejected 2 | . . 1 . . . . . . . 1 Parts Fused 2 | . . . . . . . 1 . . 1 Data Loss (minor) 13 | . . 2 . . 1 . 4 1 2 3 Data Loss (major) 13 | . . 1 . . 2 . 5 . 2 3 Misfires 4 | . . 1 . . . . 1 . 1 1 Alerts 3 | . . 1 . . . . 2 . . . Weapon Failures 9 | . . . . . 1 . 3 . . 5 Overload Shots 2 | . . . . . . . . . . 2 Overflow Damage 413 | . . 17 24 . 82 . . . . 290 Projectiles 244 | . . 17 24 . 82 . . . . 121 Explosions 169 | . . . . . . . . . . 169 Melee . | . . . . . . . . . . . Knockbacks 3 | . . 1 . . . . . . . 2 Impact . | . . . . . . . . . . . Kinetic 3 | . . 1 . . . . . . . 2 Secondary . | . . . . . . . . . . . Self-Inflicted Damage 318 | . . 30 . . 33 . 21 . . 234 Shots 14 | . . 1 . . 2 . 1 . . 10 Rammed 2 | . . . . . . . . . 1 1 Targets Rammed 2 | . . . . . . . . . 1 1 Kicked . | . . . . . . . . . . . Crushed . | . . . . . . . . . . . Highest Temperature 331 | 120 40 210 108 . 331 74 267 . 284 212 Average Temperature 75 | 53 14 48 58 . 85 38 131 . 105 50 Received Heat Transfer 1921 | . 90 117 12 . 733 . 324 . 72 573 Effects 8 | . . . . . 4 . 2 . 2 . Energy Bleed 3 | . . . . . 1 . 2 . . . Interference 5 | . . . . . 3 . . . 2 . Siege Activations . | . . . . . . . . . . . Martial Activations . | . . . . . . . . . . . Shielding Activations . | . . . . . . . . . . . Robots Disrupted 3 | . . . . . 1 . . . . 2 Combat Hostiles 3 | . . . . . 1 . . . . 2 Robots Corrupted . | . . . . . . . . . . . Combat Hostiles . | . . . . . . . . . . . Parts Fried . | . . . . . . . . . . . Impact Corruptions . | . . . . . . . . . . . Robots Melted 9 | . . . . . 3 . . . . 6 Combat Hostiles 8 | . . . . . 3 . . . . 5 Parts Melted 49 | 4 . 1 . . 12 . . . 2 30 Heat Transferred 19967 | 322 50 1073 67 . 7147 70 330 . 1600 9308 Parts Sabotaged . | . . . . . . . . . . . Parts Stolen . | . . . . . . . . . . . Parts Stripped . | . . . . . . . . . . . Power Chain Reactions . | . . . . . . . . . . . Alert | -11 -10 -10 -9 -9 -6 -6 -6 -6 -5 -5 ------- Run | Yrd Mat Sub Rec Scr Fac Low Low Zio Pro Fac Maximum Alert Level 5 | . . . . . 2 . . . . 5 Low Security (%) 50 | 100 100 . 100 . 51 . . . . 31 Level 1 22 | . . . . . 43 . . . . 15 Level 2 5 | . . . . . 5 . . . . 6 Level 3 . | . . . . . . . . . . 1 Level 4 7 | . . . . . . . . . . 15 Level 5 . | . . . . . . . . . . . High Security 14 | . . . . . . . . . . 28 Max Security . | . . . . . . . . . . . Peak Influence 2862 | 10 189 . 44 . 436 . . . . 2862 Initial 44 | . . . 44 . . . . . . 18 Average 519 | 1 101 . 7 . 183 . . . . 916 Influence Increases 6906 | 10 320 277 114 . 1269 214 250 . 227 4225 Destroy 0b10 Robot/C 3420 | . 180 240 80 . 700 160 220 . 180 1660 Destroy 0b10 Robot/NC 295 | 10 25 . . . 110 . . . . 150 Destroy Leader 536 | . 48 20 . . 132 10 30 . 30 266 Allied During Kill 261 | . . 2 9 . 33 29 . . 2 186 Trap Triggered on 0b10 10 | . . . . . 10 . . . . . Successful Hack 45 | . 12 . 10 . 16 . . . . 7 Disable Machine 570 | . 15 . . . 135 . . . . 420 Anti-Garrison Action 150 | . . . . . . . . . . 150 Destroy Structure 899 | . 40 . . . 73 . . . . 786 Partial Spotted 45 | . . . . . . . . . . 45 Lose Combat Pursuer 675 | . . 15 15 . 60 15 . . 15 555 Influence Decreases 4054 | 10 183 321 207 . 892 445 396 . 198 1402 Entered New Map 296 | . . 66 49 . . 141 29 . . 11 Time Decay 2456 | 10 183 215 118 . 540 254 347 . 168 621 Lost Part 710 | . . 40 . . 300 10 20 . 30 310 Lost Ally 292 | . . . 40 . 52 40 . . . 160 Purge Threat 300 | . . . . . . . . . . 300 Squads Dispatched 66 | . 1 . . . 10 . . . . 55 Investigation 7 | . . . . . 3 . . . . 4 Extermination 7 | . . . . . 4 . . . . 3 Reinforcement 15 | . 1 . . . 3 . . . . 11 Assault 36 | . . . . . . . . . . 36 Garrison 1 | . . . . . . . . . . 1 Intercept . | . . . . . . . . . . . Searches Triggered . | . . . . . . . . . . . Construction Impeded 3 | . . . . . 1 . . . . 2 Haulers Reinforced 5 | . . . . . 2 . . . . 3 Active Scanning Responses . | . . . . . . . . . . . Cargo Convoy Interrupts 1 | . . . . . . . . . . 1 Stealth | -11 -10 -10 -9 -9 -6 -6 -6 -6 -5 -5 --------- Run | Yrd Mat Sub Rec Scr Fac Low Low Zio Pro Fac Distress Signals 6 | . 1 . . . 2 . . . . 3 Communications Jammed . | . . . . . . . . . . . Distress Signals . | . . . . . . . . . . . Times Spotted 289 | . 13 34 4 . 62 10 12 . 13 141 Peak Tracking Total 18 | . 5 5 2 . 7 5 4 . 4 18 Tactical Retreats 26 | . . 3 1 . 4 1 . . 1 16 Traps | -11 -10 -10 -9 -9 -6 -6 -6 -6 -5 -5 ------- Run | Yrd Mat Sub Rec Scr Fac Low Low Zio Pro Fac Traps Triggered 5 | . . 3 . . 2 . . . . . Indirectly . | . . . . . . . . . . . Trap Hack Attempts . | . . . . . . . . . . . Triggered . | . . . . . . . . . . . Disarmed . | . . . . . . . . . . . Reprogrammed . | . . . . . . . . . . . Reused 1 | . . . . . 1 . . . . . Traps Extracted . | . . . . . . . . . . . Installed 1 | . . . . . 1 . . . . . Triggered 1 | . . . . . 1 . . . . . Most Traps Carried 1 | . . 1 . 1 1 . . . . . Machines | -11 -10 -10 -9 -9 -6 -6 -6 -6 -5 -5 ---------- Run | Yrd Mat Sub Rec Scr Fac Low Low Zio Pro Fac Machines Disabled 39 | . 1 . . . 9 . . . . 29 Max in Single Turn 5 | . 1 . . . 2 . . . . 5 Garrison Access 1 | . . . . . . . . . . 1 Machines Repaired . | . . . . . . . . . . . Machines Dismantled . | . . . . . . . . . . . Machines Sabotaged . | . . . . . . . . . . . Overloaded Fab Kills . | . . . . . . . . . . . Hacking | -11 -10 -10 -9 -9 -6 -6 -6 -6 -5 -5 --------- Run | Yrd Mat Sub Rec Scr Fac Low Low Zio Pro Fac Machines Accessed 35 | . 4 3 6 5 7 3 1 . . 6 Terminals 14 | . 4 . 6 . 2 . . . . 2 Fabricators 3 | . . . . . 2 . . . . 1 Repair Stations 1 | . . . . . 1 . . . . . Recycling Units 4 | . . . . . 1 . . . . 3 Scanalyzers 1 | . . . . . 1 . . . . . Garrison Access . | . . . . . . . . . . . Total Hacks 100 | . 15 7 18 14 17 5 4 . . 20 Successful 58 | . 5 7 6 14 8 5 4 . . 9 Failed 41 | . 10 . 12 . 8 . . . . 11 Catastrophic 5 | . . . . . 1 . . . . 4 Database Lockouts 1 | . . . . . 1 . . . . . Manual 29 | . 10 1 9 . 1 . . . . 8 Terminals 45 | . 15 . 18 . 3 . . . . 9 Fabricators 13 | . . . . . 7 . . . . 6 Repair Stations 1 | . . . . . 1 . . . . . Recycling Units 7 | . . . . . 2 . . . . 5 Scanalyzers 4 | . . . . . 4 . . . . . Garrison Access . | . . . . . . . . . . . Terminal Hacks 44 | . 5 7 4 14 1 5 4 . . 4 Record 20 | . . 5 . 8 . 3 4 . . . Part Schematic 2 | . . . 1 . . . . . . 1 Robot Schematic 1 | . . . 1 . . . . . . . Robot Analysis 10 | . 2 . 2 5 . . . . . 1 Prototype ID Bank 1 | . 1 . . . . . . . . . Open Door 3 | . . 1 . . . 2 . . . . Unreport Threat 2 | . . . . . . . . . . 2 Hauler Manifests 1 | . . . . . 1 . . . . . Zone Layout 2 | . 2 . . . . . . . . . Proto ID Catalog 1 | . . . . 1 . . . . . . Release Object 1 | . . 1 . . . . . . . . Fabricator Hacks 4 | . . . . . 2 . . . . 2 Network Status 1 | . . . . . . . . . . 1 Load Schematic 2 | . . . . . 1 . . . . 1 Build 1 | . . . . . 1 . . . . . Repair Station Hacks 1 | . . . . . 1 . . . . . Scan Component 1 | . . . . . 1 . . . . . Recycling Unit Hacks 1 | . . . . . 1 . . . . . Retrieve Components 1 | . . . . . 1 . . . . . Scanalyzer 3 | . . . . . 3 . . . . . Retrieve Study 3 | . . . . . 3 . . . . . Garrison Access Hacks . | . . . . . . . . . . . Unauthorized Hacks 5 | . . . 2 . . . . . . 3 Terminals 3 | . . . 2 . . . . . . 1 Botnet 3 | . . . 2 . . . . . . 1 Fabricators . | . . . . . . . . . . . Repair Stations . | . . . . . . . . . . . Recycling Units 2 | . . . . . . . . . . 2 Fedlink 2 | . . . . . . . . . . 2 Scanalyzers . | . . . . . . . . . . . Garrison Access . | . . . . . . . . . . . Data Cores Recovered 2 | . 1 . . . 1 . . . . . Used . | . . . . . . . . . . . Hacking Detections 19 | . 4 . 5 . 6 . . . . 4 Full Trace Events 7 | . 1 . 2 . 2 . . . . 2 Feedback Events 1 | . . . . . . . . . . 1 Corruption 1 | . . . . . . . . . . 1 Feedback Blocked . | . . . . . . . . . . . Robot Schematics Acquired 4 | . . . 1 . . . . 3 . . Robots Built . | . . . . . . . . . . . Authchips . | . . . . . . . . . . . Time . | . . . . . . . . . . . Total Robot Build Rating . | . . . . . . . . . . . Part Schematics Acquired 51 | . . . 1 . 15 4 1 19 . 11 Parts Built 1 | . . . . . 1 . . . . . Authchips . | . . . . . . . . . . . Time 84 | . . . . . 84 . . . . . Total Part Build Rating 4 | . . . . . 4 . . . . . Part Studies Acquired 3 | . . . . . 3 . . . . . Parts Repaired . | . . . . . . . . . . . Time . | . . . . . . . . . . . Parts Recycled . | . . . . . . . . . . . Recycled Matter . | . . . . . . . . . . . Retrieved Matter . | . . . . . . . . . . . Retrieved Components 9 | . . . . . 9 . . . . . Parts Scanalyzed . | . . . . . . . . . . . Part Schematics Acquired . | . . . . . . . . . . . Parts Damaged . | . . . . . . . . . . . Bothacking | -11 -10 -10 -9 -9 -6 -6 -6 -6 -5 -5 ------------ Run | Yrd Mat Sub Rec Scr Fac Low Low Zio Pro Fac Used RIF Installer . | . . . . . . . . . . . Robots Hacked 2 | . . . . . . . . . . 2 Non-combat . | . . . . . . . . . . . Combat . | . . . . . . . . . . . Robot Hacks Applied . | . . . . . . . . . . . Manual 2 | . . . . . . . . . . 2 Relay Couplers Released 1 | . . . . . . . . . . 1 Machine Destruction 1 | . . . . . . . . . . 1 Fabnet Peak Effective % . | . . . . . . . . . . . Robots Rewired 8 | . . . 8 . . . . . . . Allies Hacked 2 | . . . . . . . . . . 2 Hacks Repelled . | . . . . . . . . . . . Allies | -11 -10 -10 -9 -9 -6 -6 -6 -6 -5 -5 -------- Run | Yrd Mat Sub Rec Scr Fac Low Low Zio Pro Fac Total Allies 26 | . . 2 8 . 5 . . . 1 10 Largest Group 7 | . . 2 7 7 5 3 . . 1 5 Highest-Rated Group 265 | . . 16 96 96 238 141 . . 12 265 Highest-Rated Ally 99 | . . 8 27 27 50 47 . . 12 99 Initial UFD Resources 25 | . . . . . 22 22 22 22 25 25 Total Orders 1 | . . . . . . . . . . 1 ROAM 1 | . . . . . . . . . . 1 Ally Attacks 190 | . . 4 18 . 21 34 . . 3 110 Total Damage 5348 | . . 12 139 . 324 441 . . 25 4407 Kills 46 | . . 1 4 . 4 7 . . 1 29 Allies Corrupted 1 | . . . . . 1 . . . . . Allies Melted . | . . . . . . . . . . . X0-1V1 Amusement Gains 287 | . 8 30 10 . 85 . 20 . . 134 Average Entertainment 41 | . . 12 24 . 55 65 41 . 16 53 Good Acts 75 | . . 19 3 . 10 7 3 . 1 32 Bad Acts 57 | . . 32 . . 6 1 2 . 2 14 Intel | -11 -10 -10 -9 -9 -6 -6 -6 -6 -5 -5 ------- Run | Yrd Mat Sub Rec Scr Fac Low Low Zio Pro Fac Active Infowar (turns) 7377 | . 337 55 . . 632 558 1944 823 993 2035 Optics 507 | . . . . . . . . . . 507 Sensors 2590 | . . . . . 632 558 849 . . 551 Terrain 20 | . . . . . . . . . . 20 Structural 4954 | . 337 55 . . . . 1286 823 993 1460 Machine Analysis 362 | . . . . . . . . . . 362 Robot Analysis Total 10 | . 2 . 2 5 . . . . . 1 Derelict Logs Recovered 5 | . . 2 . 1 . 1 1 . . . Drone Launches 2 | . . . . . . . . . . 2 Drone Recoveries . | . . . . . . . . . . . Exploration | -11 -10 -10 -9 -9 -6 -6 -6 -6 -5 -5 ------------- Run | Yrd Mat Sub Rec Scr Fac Low Low Zio Pro Fac Turns Passed 15787 | 91 402 2117 647 1179 2115 558 1944 2399 1176 3159 Spaces Moved 8157 | 59 323 1429 417 882 924 342 445 637 307 2392 Core 349 | 9 . 1 . . 50 . 59 . 1 229 Treads 1516 | . . . . . . . 385 637 306 188 Legs 24 | . . . . . 24 . . . . . Wheels 5361 | 50 323 1428 417 882 850 342 1 . . 1068 Hover . | . . . . . . . . . . . Flight 907 | . . . . . . . . . . 907 Fastest Speed 40 | 50 90 105 130 130 50 130 160 320 240 40 Average Speed 167 | 83 90 130 136 130 163 155 416 373 318 105 Slowest Speed 1050 | 90 105 450 145 130 950 160 1050 400 700 260 Overloaded Moves . | . . . . . . . . . . . Propulsion Burnouts . | . . . . . . . . . . . Robots Hopped . | . . . . . . . . . . . Potential Cave-ins . | . . . . . . . . . . . Cave-ins Triggered . | . . . . . . . . . . . Exploration Rate (%) 58 | 4 78 66 89 61 21 57 70 82 52 60 Regions Visited 10 Branch Regions 7 Pre-discovered Areas 7 | . . 1 . . . 2 . 3 . 1 Known Exits Taken 4 | . . 1 . . 1 1 1 . . . Unknown Exits Taken 6 | 1 1 . 1 1 . . . 1 1 . Scrap Searched 24 | . . 8 . 8 . 2 4 2 . . Spaces Dug 16 | . . 2 . . 2 . 2 1 . 9 Terrain Destroyed 739 | . 39 65 . . 65 10 82 1 . 477 Melee 7 | . . . . . . . . 1 . 6 Projectile 105 | . . 7 . . 36 10 40 . . 12 AOE 627 | . 39 58 . . 29 . 42 . . 459 Terrain Rammed . | . . . . . . . . . . . Walls Destroyed . | . . . . . . . . . . . Machines Disabled . | . . . . . . . . . . . Actions | -11 -10 -10 -9 -9 -6 -6 -6 -6 -5 -5 --------- Run | Yrd Mat Sub Rec Scr Fac Low Low Zio Pro Fac Total 9478 | 85 382 1584 492 917 1272 362 491 661 456 2776 Wait 345 | . 6 21 17 11 65 . . . 127 98 Move 8147 | 58 322 1428 416 881 923 341 444 636 306 2392 Hop . | . . . . . . . . . . . Pick Up 163 | 12 9 20 1 17 44 4 2 6 2 46 Fast Attach 42 | . . 1 . . 21 2 1 3 . 14 Attach 103 | 6 1 13 . 1 37 . 5 2 2 36 Detach 14 | . . 2 . 1 3 . 1 2 1 4 Swap 51 | 2 6 5 . 1 12 1 1 1 1 21 Drop 112 | . 5 20 1 5 32 8 . 10 . 31 Fire 418 | 7 33 74 1 . 124 6 37 . 16 120 Melee 16 | . . . . . 2 . . 1 . 13 Ram 1 | . . . . . . . . . . 1 Kick . | . . . . . . . . . . . Crush 1 | . . . . . . . . . 1 . Escape Stasis 8 | . . . . . 8 . . . . . Rewire 56 | . . . 56 . . . . . . . Trap 1 | . . . . . 1 . . . . . Miscellaneous . | . . . . . . . . . . . Route ------- -11/Scrapyard -10/Materials (discovered 4 exits: [*Mat x2] / [*Min] / *Sub) -10/Subcaves (discovered 2 exits: Mat / *Rec) -9/Recycling (discovered 2 exits: [*Fac] / *Scr) -9/Scraptown -6/Factory -6/Lower Caves -6/Lower Caves (discovered 2 exits: *Fac / *Zio) -6/Zion -5/Proximity Caves -5/Factory (discovered 2 exits: *Fac x2) History --------- Turn | Location | Event 2 | -11/Scrapyard | Met Revision 17 26 | -11/Scrapyard | Discovered new exit (range 16) 92 | -11/Scrapyard | Entered Materials 265 | -10/Materials | Discovered new exit (range 9) 306 | -10/Materials | Build established: Mutant 352 | -10/Materials | Discovered new exit (range 12) 436 | -10/Materials | Discovered new exit (range 13) 478 | -10/Materials | Discovered new exit (range 6) 494 | -10/Materials | Prayed at D.C.S.S. Altar Unit 494 | -10/Materials | Entered Subcaves 495 | -10/Subcaves | Approached by a straggling Scientist 501 | -10/Subcaves | X0-1V1 mutated your Propulsion slot to Power slot 512 | -10/Subcaves | Learned location of 1 exit from Materials 691 | -10/Subcaves | A swath of the cavern ceiling suddenly collapsed 1046 | -10/Subcaves | Ambushed by Subdweller buried in earth 1080 | -10/Subcaves | Lost 4 parts (2p1n1w) 1093 | -10/Subcaves | Disturbed a concealed Subdweller 1140 | -10/Subcaves | Shifting Twisted Machinery released Sub. Machine Gun 1144 | -10/Subcaves | Shifting Twisted Machinery released Piercing Trap 1156 | -10/Subcaves | Identified exit to Materials 1156 | -10/Subcaves | X0-1V1 revealed exit location to -8/Materials 1176 | -10/Subcaves | Core integrity permanently improved by X0-1V1 (+200) 1213 | -10/Subcaves | X0-1V1 activates XOMVISION 1219 | -10/Subcaves | X0-1V1 caused items to flee you 1223 | -10/Subcaves | Discovered exit to Materials (range 7) 1223 | -10/Subcaves | X0-1V1 sent you into danger 1224 | -10/Subcaves | Ambushed by Subdwellers from Twisted Machinery 1229 | -10/Subcaves | Ambushed by Subdwellers from Twisted Machinery 1259 | -10/Subcaves | Identified exit to Recycling 1259 | -10/Subcaves | X0-1V1 revealed exit location to -9/Recycling 1277 | -10/Subcaves | X0-1V1 sent hostile S-10 Pest (x5) 1299 | -10/Subcaves | X0-1V1 sent you into danger 1304 | -10/Subcaves | System corruption reached 10% 1329 | -10/Subcaves | Core integrity restored by X0-1V1 (+103) 1331 | -10/Subcaves | X0-1V1 tapped a No Entrance sign 1335 | -10/Subcaves | X0-1V1 sent hostile S-10 Pest (x4) 1368 | -10/Subcaves | Core integrity fell below 50% 1382 | -10/Subcaves | Items stopped fleeing you 1426 | -10/Subcaves | X0-1V1 activates XOMVISION 1428 | -10/Subcaves | Learned 2 Materials zone layouts 1444 | -10/Subcaves | Shifting Twisted Machinery released Battle Cannon 1445 | -10/Subcaves | Shifting Twisted Machinery released Sub. Beam Cannon 1480 | -10/Subcaves | A swath of the cavern ceiling suddenly collapsed 2049 | -10/Subcaves | Visited Clippyterm 2053 | -10/Subcaves | Learned location of Section 7 (-2) 2053 | -10/Subcaves | Learned Factory stockpile data 2237 | -10/Subcaves | Found SUBCON Basin 2421 | -10/Subcaves | X0-1V1 sent allied G-34 Mercenary (x2) 2611 | -10/Subcaves | Entered Recycling 2611 | -9/Recycling | Accompanied by 2 allies 2838 | -9/Recycling | Discovered new exit (range 5) 3155 | -9/Recycling | Energy generation permanently improved by X0-1V1 (+10; -100 max core) 3203 | -9/Recycling | Scanned before Scraplab entrance 3222 | -9/Recycling | Entered Scraplab 3244 | -9/Recycling | Build established: Commander-Mutant 3255 | -9/Recycling | Discovered new exit (range 2) 3258 | -9/Recycling | Entered Scraptown 3258 | -9/Scraptown | Accompanied by 7 allies 3300 | -9/Scraptown | Visited Symbiants 3320 | -9/Scraptown | Visited Comm Corps 3361 | -9/Scraptown | Scanned Subdweller tech in exchange for log data 3365 | -9/Scraptown | Learned location of 2 exits from Upper Caves 3394 | -9/Scraptown | Visited CPS Storage 3429 | -9/Scraptown | Visited Cyclists 3447 | -9/Scraptown | Visited UFD Registry 3447 | -9/Scraptown | Registered with UFD as "Thermoslider" 3473 | -9/Scraptown | Entered Cyclist Reading Room 3525 | -9/Scraptown | Visited Fellowship of the Rings 3539 | -9/Scraptown | Visited Shadow of the Wyrm 3550 | -9/Scraptown | Visited Bundlers 3779 | -9/Scraptown | Visited Science Guys 3827 | -9/Scraptown | Visited Abandonware Association 3840 | -9/Scraptown | Learned abandonware demo "HACKBUD.EXE" 3840 | -9/Scraptown | Learned abandonware demo "POISON.EXE" 3869 | -9/Scraptown | Visited A0-MCA Data Center 3877 | -9/Scraptown | Given a B- rating by A0-MCA 3879 | -9/Scraptown | Found A0-MCA's Component Scanner 3906 | -9/Scraptown | Visited Chapter 10 4050 | -9/Scraptown | Visited DA-N13 Charitable Foundation 4055 | -9/Scraptown | Found DCF Scrap (28 items) 4102 | -9/Scraptown | Visited Scrapoid Pod Storage 4109 | -9/Scraptown | Found Scrapoid Pod 4134 | -9/Scraptown | Visited Scrapoid Research Area 4162 | -9/Scraptown | Visited Analyses Database 4194 | -9/Scraptown | Visited Infowarlord's Domain 4202 | -9/Scraptown | Found Exp. Sensor Array 4281 | -9/Scraptown | Visited Scrap Suit Storage 4287 | -9/Scraptown | Found Scrap Suit 4343 | -9/Scraptown | Met Optimus 4343 | -9/Scraptown | Accepted into 0bPrime 4420 | -9/Scraptown | Discovered new exit (range 3) 4437 | -9/Scraptown | Entered Factory 4437 | -6/Factory | Accompanied by 5 allies 4437 | -6/Factory | Evolved 8 slots: Utility x6, Weapon x2 4474 | -6/Factory | Central database locked down 4521 | -6/Factory | Lost 4 allies 4639 | -6/Factory | Tech Extrapolator generated special schematic: Deep Structural Scanner 4701 | -6/Factory | Sight range permanently improved by X0-1V1 (+1; -150 max core) 4802 | -6/Factory | Build established: Gunner 5534 | -6/Factory | X0-1V1 upgraded hostiles (x1) 5585 | -6/Factory | X0-1V1 activates XOMVISION 5678 | -6/Factory | Tech Extrapolator generated special schematic: Machine Rigger 5730 | -6/Factory | Attached CPS modules to H-66 Slayer 5767 | -6/Factory | X0-1V1 upgraded hostiles (x2) 5831 | -6/Factory | Lost 11 parts (1p1n3u6w) 5883 | -6/Factory | X0-1V1 upgraded hostiles (x2) 5884 | -6/Factory | Core integrity fell below 50% 5921 | -6/Factory | Core integrity fell below 20% 5927 | -6/Factory | X0-1V1 rescued you from certain death 5974 | -6/Factory | Lost 15 parts (2p3n4u6w) 6105 | -6/Factory | Discovered new exit (range 10) 6117 | -6/Factory | Identified exit to Lower Caves 6205 | -6/Factory | Found Prototype Launcher 6206 | -6/Factory | Identified Scatter Rocket Array 6269 | -6/Factory | Fabricated Deep Structural Scanner? 6295 | -6/Factory | X0-1V1 foreshadows a heat wave 6360 | -6/Factory | Scrapoid Pod released 06F06-D (x5) 6410 | -6/Factory | Attached CPS modules to 06F02-D 6413 | -6/Factory | Attached CPS modules to 06F06-D 6426 | -6/Factory | Found Scrap Suit 6445 | -6/Factory | Found Scrap Suit 6539 | -6/Factory | Ambient heat levels rising (+10) 6552 | -6/Factory | Entered Lower Caves 6552 | -6/Lower Caves | Accompanied by 3 allies 6575 | -6/Lower Caves | Encountered a Warlord checkpoint 6681 | -6/Lower Caves | Build established: Scavenger-Skirmisher 6720 | -6/Lower Caves | Found Scrap Suit 6774 | -6/Lower Caves | Found Prototype Device 6936 | -6/Lower Caves | Entered an active Warlord outpost 6966 | -6/Lower Caves | Learned location of Extension (-6) 6973 | -6/Lower Caves | X0-1V1 activates XOMVISION 6987 | -6/Lower Caves | Core integrity restored by X0-1V1 (+200) 7002 | -6/Lower Caves | Learned Factory trap positions 7037 | -6/Lower Caves | Identified exit to Lower Caves 7037 | -6/Lower Caves | X0-1V1 revealed exit location to -6/Lower Caves 7110 | -6/Lower Caves | Entered another Lower Caves area 7725 | -6/Lower Caves | X0-1V1 sent hostile B-48 Gladiator (x1) 7739 | -6/Lower Caves | System corruption reached 10% 7769 | -6/Lower Caves | Lost 3 parts (3u) 7844 | -6/Lower Caves | Learned Factory security intel 7844 | -6/Lower Caves | Discovered new exit (range 10) 7959 | -6/Lower Caves | X0-1V1 caused items to flee you 8200 | -6/Lower Caves | Identified exit to Zion 8200 | -6/Lower Caves | X0-1V1 revealed exit location to -6/Zion 8265 | -6/Lower Caves | Build established: Scavenger-Tank 8443 | -6/Lower Caves | Items stopped fleeing you 8615 | -6/Lower Caves | X0-1V1 activates XOMVISION 9054 | -6/Lower Caves | Entered Zion 9153 | -6/Zion | Given the Hacking Drone Bay 9185 | -6/Zion | System corruption cleaned by Quarantine Array 9692 | -6/Zion | Identified Heart of Steel 9979 | -6/Zion | Build established: Scavenger-Gunner 10047 | -6/Zion | Found Prototype Energy Gun 10047 | -6/Zion | Identified Storm Laser 10128 | -6/Zion | Learned location of Quarantine (-3) 10212 | -6/Zion | Given A8's code to call for help 10344 | -6/Zion | Turned away by Imprinter 10888 | -6/Zion | Learned location of Warlord (-5) 11266 | -6/Zion | Found Prototype Device 11266 | -6/Zion | Identified Hacking Drone Bay 11401 | -6/Zion | Discovered new exit (range 13) 11453 | -6/Zion | Entered Proximity Caves 11497 | -5/Proximity Caves | X0-1V1 caused items to flee you 11574 | -5/Proximity Caves | Build established: Scavenger-Skirmisher 11858 | -5/Proximity Caves | Items stopped fleeing you 12120 | -5/Proximity Caves | Spotted B-75 Beast 12254 | -5/Proximity Caves | X0-1V1 turns hostiles against one another 12296 | -5/Proximity Caves | Lost 3 parts (1p1n1u) 12517 | -5/Proximity Caves | Discovered new exit (range 15) 12542 | -5/Proximity Caves | Build established: Skirmisher 12629 | -5/Proximity Caves | Entered Factory 12629 | -5/Factory | Evolved 2 slots: Utility x2 12630 | -5/Factory | Loaded intel: 102 trap records 12655 | -5/Factory | X0-1V1 sent you to a vault 12826 | -5/Factory | Sage 6c assimilated hostile G-50 Soldier 12926 | -5/Factory | Heart of Steel transformed into Warbot 13351 | -5/Factory | Tech Extrapolator generated special schematic: Active Sensor Spoofer 13455 | -5/Factory | Build established: Scavenger-Gunner 13476 | -5/Factory | Found Imp. Powered Armor 13597 | -5/Factory | Cargo convoy interrupted 13949 | -5/Factory | Loaded intel: 8 recycling unit locations 14031 | -5/Factory | Learned location of Protoforge (-2) 14072 | -5/Factory | Garrison activated, responded to threat 14271 | -5/Factory | X0-1V1 activates XOMVISION 14358 | -5/Factory | Destroyed 7 combat bots 14358 | -5/Factory | Lost 3 parts (1n1u1w) 14429 | -5/Factory | First assault squad dispatched 14879 | -5/Factory | X0-1V1 sent you into danger 14887 | -5/Factory | High security lockdown imminent 14967 | -5/Factory | High security lockdown engaged 15176 | -5/Factory | X0-1V1 sent allied G-50 Soldier (x2) 15184 | -5/Factory | Lost 3 parts (1p1n1w) 15193 | -5/Factory | P-70 Sage assimilated allied G-50 Soldier 15204 | -5/Factory | X0-1V1 upgraded hostiles (x2) 15209 | -5/Factory | Core integrity fell below 50% 15235 | -5/Factory | Destroyed 10 combat bots 15250 | -5/Factory | Lost 13 parts (1p6u6w) 15258 | -5/Factory | Core integrity fell below 20% 15277 | -5/Factory | Identified exit to Factory 15277 | -5/Factory | X0-1V1 revealed exit location to -4/Factory 15298 | -5/Factory | X0-1V1 enhanced Transport squad support 15342 | -5/Factory | Core integrity restored by X0-1V1 (+142) 15366 | -5/Factory | Found Mni. Smartbomb Launcher 15371 | -5/Factory | X0-1V1 put everyone to sleep 15405 | -5/Factory | X0-1V1 redirected Transport squads to designated parking area 15470 | -5/Factory | X0-1V1 caused items to flee you 15502 | -5/Factory | Discovered exit to Factory (range 12) 15521 | -5/Factory | Items stopped fleeing you 15580 | -5/Factory | X0-1V1 woke everyone up 15631 | -5/Factory | Build established: Scout 15673 | -5/Factory | X0-1V1 sent you into danger 15737 | -5/Factory | X0-1V1 made a cryptic comment about sterilization and BL-4Z3 15784 | -5/Factory | X0-1V1 sent you into danger 15788 | -5/Factory | Destroyed by H-66 Slayer with Gauss Rifle Last Messages --------------- 15766_ I-47 Archangel unfolds itself. 15766_ Adv. Sensor Array destroyed. 15767_ Smartbomb intercepted. 15770_ X0-1V1's Piety Tracker destroyed. 15770_ X0-1V1 is mildly amused. 15776_ Dropped Adv. Plasma Cannon. 15777_ Acquired Adv. Plasma Cannon. 15784_ X0-1V1: "Enjoy the ride!" 15786_ X0-1V1: "The ol' switcheroo!" H-66 Slayer form resolidifies at new position. Form resolidifies at new position. 15787_ Penetrated by Slug. 15787_ Mni. Smartbomb Launcher destroyed. 15787_ C-45 Heavy ARC bursts open, deploying its payload. 15787_ G-67 Veteran unfolds itself. 15787_ G-50 Soldier unfolds itself. 15787_ M-28 Smith unfolds itself. 15788_ Penetrated by Slug. 15788_ X0-1V1 cackles wildly! Map ----- +----------------------------------------------------+ | # """ """ """ # ^+ | | # # # | | ################+# ####### | | ####+## ###+#####????????????## | | # # # ##???????????## ^^ | | #! """## # ##???????????## | | # """#### ##????????????# ######## | | # R"## # ##???????????## # ! # | | # """#### ##???????????# + = # | | * # "" #### ###??????????####### ! ! # | | # #### " " # #????????????????? # | | # | #### ""G"" #??????????????????###### | | # #### #################??????#### | | #################### # #?????? | | ###############????# " " # #??????? | | ###############????#### "Y" # #??????? " | | ############ ??????## "" # #?????? ! " | | ?????????????????????# = #?????? " | | ?????????????????????## #+############ " | | ?????????????????????+ % ; ; | | ?????????????????????### h """" | | ???????????????????????# | | ???????????????????????# | | ???????????????????????## ^ | | ?????????????#+########### ^ | | ???# @ ^hg | | ???# ########## =| | | ???????H???????????????????# "%g !%* | | ???????????????????????????# " [%[[ | | ???????????????????????????## ### [=* | | ????????????????????????????# #?# =%[ # | | ????????????????????????????# #?# # | | ??????????????????????#######+### ! =+ | | ??????????????????????# ! # ##"""""""""+##*# | | ?????????????????"""??# !] # #### # #?? | | ?????????????????"""??# ! ! =# #??### #^? | | ?????????????????"""??# # #????# = #^? | | ??????????????????""??########"##+###### #?? | | ??????????????????""?????????# ## ] #?? | | ?????????????????????????????# """" ## #?? | | ?????????????????????????????# """" ##########?? | | ?????????????????????????????#! """" +??????????? | | ?????????????????????????????# """" #??????????? | | ?????????????????????????????# #??????????? | | ???????""????????????????????# ""T"" #??????????? | | ???????"Y????""??""??????????# """"" #??????????? | | ???????""????""??""??????????# #??????????? | | ?????????????"""?"""?????????#####/####??????????? | | ???????????^?"""?"""???????????^ ????????????? | | ?????????????"""^"""?????????? #??????????? | +----------------------------------------------------+ Best States ------------- Heat Dissipation 113 Energy Generation 51 Energy Capacity 1885 Matter Stores 1100 Matter Capacity 1100 Sight Range 23 Robot Scan Range 20 Terrain Scan Range 20 Terrain Scan Density 10 Base Temperature (-) 150 Corruption Block 15 Armor Coverage 400 Resistance: EM 32 Core Shielding 30 Propulsion Shielding 15 Weapon Cycling 20 Evasion (%) 62 Targeting Accuracy 8 Melee Accuracy 8 Core Analysis 6 Recoil Reduction 1 Particle Charging 20 Defensive Hacking 28 Item Schematics ----------------- Med. Armor Plating | -9/Recycling | Hacked Mak. Leg | -6/Factory | Extrapolated Deep Structural Scanner | -6/Factory | Extrapolated Beamcaster | -6/Factory | Extrapolated Mak. Sensor Array | -6/Factory | Extrapolated Mak. Light Armor Plating | -6/Factory | Extrapolated Mak. Terrain Scanner | -6/Factory | Extrapolated 0b10 Decoder Chip [Generic] | -6/Factory | Extrapolated 0b10 Decoder Chip [Scout] | -6/Factory | Extrapolated 0b10 Decoder Chip [Skirmisher] | -6/Factory | Extrapolated Machine Rigger | -6/Factory | Extrapolated Tactical Coordination Suite | -6/Factory | Extrapolated Mak. Core Shielding | -6/Factory | Extrapolated Barrage Gun | -6/Factory | Extrapolated Mak. Power Source | -6/Factory | Extrapolated Multitool | -6/Factory | Extrapolated Mak. Coolant Network | -6/Lower Caves | Extrapolated Hvy. Battle Rifle | -6/Lower Caves | Extrapolated Arc Thrower | -6/Lower Caves | Extrapolated Hvy. Beamcaster | -6/Lower Caves | Extrapolated Mak. ECM Suite | -6/Lower Caves | Extrapolated Mak. Medium Armor Plating | -6/Zion | Extrapolated Mak. Ablative Armor | -6/Zion | Extrapolated Mak. Hacking Suite | -6/Zion | Extrapolated Mak. System Shield | -6/Zion | Extrapolated Plasma Flamer | -6/Zion | Extrapolated Force Field | -6/Zion | Archive Imp. Remote Datajack | -6/Zion | Archive Power Amplifier | -6/Zion | Archive Imp. Launcher Guidance Computer | -6/Zion | Archive Adv. Heat Sink | -6/Zion | Archive Imp. Focal Shield | -6/Zion | Archive Hardcell Cannon | -6/Zion | Archive Adv. Coolant Injector | -6/Zion | Archive IFF Parser | -6/Zion | Archive Imp. Component Analysis Suite | -6/Zion | Archive Adv. Recoil Stabilizer | -6/Zion | Archive Hyp. Gauss Rifle | -6/Zion | Archive Imp. Thermal Generator | -6/Zion | Archive Neutrino Core | -6/Zion | Archive Mak. Weapon Shielding | -5/Factory | Extrapolated Mak. Kinetic Plating | -5/Factory | Extrapolated Mak. Targeting Computer | -5/Factory | Extrapolated Active Sensor Spoofer | -5/Factory | Extrapolated Mak. Heavy Armor Plating | -5/Factory | Extrapolated Mak. Power Shielding | -5/Factory | Extrapolated Imp. Heavy Siege Treads | -5/Factory | Hacked Mak. Flight Unit | -5/Factory | Extrapolated Mak. Propulsion Shielding | -5/Factory | Extrapolated Mak. Thermal Plating | -5/Factory | Extrapolated Mak. Hover Unit | -5/Factory | Extrapolated Robot Schematics ------------------ L-31 Rogue | -9/Recycling | Hacked R-10 Processor | -6/Zion | Archive R-06 Scavenger | -6/Zion | Archive K-01 Serf | -6/Zion | Archive Fabricated ------------ Deep Structural Scanner | x1 | -6/Factory Repaired ---------- Nothing Studied --------- Com. Wheel | -6/Factory | Hacked Wheel | -6/Factory | Hacked Arm. Wheel | -6/Factory | Hacked Alien Tech Used ----------------- None Achievements -------------- About That Survey... Brother of Steel Inventory Pressure Scientist At Large Challenges ------------ None Game ------ Seed FlightSpacefoldBeam Manual? 0 Play Time 02:34:52 Cumulative 363.8 hours Start 2026.09.07 @ 20:58:03 End 2026.09.08 @ 00:56:19 Sessions 9 Manual Loads 0 Difficulty Rogue Special Mode None Game No. 273 Rogue 264 Adventurer 9 Explorer 0 Win Type - Total 5 Types 4/0/0/1/0/0/0/0/0/0 Lore% 88 Gallery% 74 Achievement% 56 Wizard Run 0 Options --------- Layout 1 ASCII 0 Keyboard 0 Movement Numpad Keybinds 0 Fullscreen 1 Font 24/Smallcaps Map View 50x35 Zoom Use 0% Tactical HUD 1 Map Filters NONE Filters NONE Steam 1 RUN: 1e3d750f-24d9-41c7-a0e4-1be60edec99d